Cogmind - Beta 17 @@@ ROGUE MODE // 2026.07.11 @ 15:57:35 Player: Dosh Result: Destroyed by 6X-II5(R) with Subdweller Beam Cannon Performance ------------- Evolutions (0) 0 Regions Visited (2) 400 Robots Destroyed (32) 160 Value Destroyed (743) 743 Prototype IDs (1) 20 Alien Tech Used (0) 0 Bonus (5100) 5100 TOTAL SCORE: 6423 Bonus ------- Prayed to X0-1V1 5000 Major X0-1V1 Interference 100 Cogmind --------- Core Integrity 0/160 Matter 300/300 Energy 1253/1665 System Corruption 0% Temperature Cool (23) Movement Treading (160) Location -10/Subcaves Parts ------- > --- POWER (1) -------- Improved Ion Engine > --- PROPULSION (3) --- Light Treads Light Treads Light Treads > --- UTILITY (1) ------ Large Storage Unit > --- WEAPON (2) ------- Spread Laser Spread Laser > --- INVENTORY (15) --- Improved Ion Engine Light Treads Light Treads Improved Flight Unit Improved Flight Unit Improved Flight Unit Improved Heat Sink Huge Storage Unit Structural Scanner Hacking Suite Heavy EM Pulse Gun Spread Laser Spread Laser Multitool Mining Claw Peak State ------------ > --- POWER ------------ Improved Ion Engine > --- PROPULSION ------- Light Treads Light Treads > --- UTILITY ---------- Large Storage Unit Structural Scanner > --- WEAPON ----------- Spread Laser Spread Laser > --- INVENTORY -------- Improved Ion Engine Improved Ion Engine Light Treads Light Treads Improved Flight Unit Improved Flight Unit Improved Flight Unit Improved Heat Sink Huge Storage Unit Hacking Suite Heavy EM Pulse Gun Heavy EM Pulse Gun Spread Laser Spread Laser [Rating: 13] Favorites ----------- Power Improved Ion Engine Engine Improved Ion Engine Propulsion Light Treads Treads Light Treads Utility Large Storage Unit Device Structural Scanner Storage Large Storage Unit Weapon Spread Laser Energy Gun Spread Laser Energy Cannon Light EM Pulse Cannon Ballistic Gun Assault Rifle Slashing Weapon Mining Claw Build | -11 -10 -10 ------- Run | Yrd Mat Sub Slots Evolved . | . . . Power . | . . . Propulsion . | . . . Utility . | . . . Weapon . | . . . Parts Attached 19 | 6 12 1 Power 5 | 1 3 1 Engine 5 | 1 3 1 Core . | . . . Reactor . | . . . Propulsion 3 | 2 1 . Treads 3 | 2 1 . Leg . | . . . Wheel . | . . . Hover . | . . . Flight . | . . . Utility 3 | 1 2 . Device 1 | . 1 . Storage 2 | 1 1 . Processor . | . . . Hackware . | . . . Protection . | . . . Artifact . | . . . Weapon 8 | 2 6 . Energy Gun 4 | 2 2 . Energy Cannon 1 | . 1 . Ballistic Gun 2 | . 2 . Ballistic Cannon . | . . . Launcher . | . . . Special Weapon . | . . . Impact Weapon . | . . . Slashing Weapon 1 | . 1 . Piercing Weapon . | . . . Special Melee Weapon . | . . . Unidentified Prototypes 1 | . 1 . Parts Lost 1 | . 1 . Power . | . . . Propulsion 1 | . 1 . Utility . | . . . Weapon . | . . . Highest Loss Streak 1 | . 1 . To Critical Strikes . | . . . Average Backups 10 | . 8 14 Power . | . . 1 Propulsion 3 | . 2 5 Utility 2 | . 1 3 Weapon 3 | . 4 4 Tool/Special . | . . . Unused Backups 19 | . 5 14 Power 2 | . 1 1 Propulsion 5 | . . 5 Utility 4 | . . 4 Weapon 7 | . 4 3 Tool/Special 1 | . . 1 Average Slot Usage (%) 95 | . 92 100 Engine 14 | . 14 14 Treads 31 | . 27 39 Device 5 | . 6 2 Storage 14 | . 14 14 Energy Gun 17 | . 14 25 Energy Cannon 3 | . 4 . Ballistic Gun 5 | . 9 . Slashing Weapon 1 | . . 2 Peak Build Rating 13 | 6 13 13 Average Rating 9 | 4 8 12 On Entrance 6 | . 6 12 Avg Prop Armor Cover (%) . | . . . Naked Turns . | . . . Heaviest Build 34 | 14 34 34 Greatest Support 60 | 40 40 60 Greatest Overweight (x) . | . . . Average Overweight (x) . | . . . Largest Inventory Capacity 15 | 8 15 15 Average Capacity 12 | 7 11 15 Most Carried 15 | 1 15 15 Average Carried 10 | . 8 14 Final Capacity 15 | 8 15 15 Final Carried 15 | 1 15 15 Class Distribution -------------------- 100% | Mutant Dominant Class ---------------- Mutant | -10/Materials Mutant | -10/Subcaves Resources | -11 -10 -10 ----------- Run | Yrd Mat Sub Matter Collected 545 | 192 253 100 Remotely . | . . . Salvage Created 875 | . 775 100 Parts 53 | . 50 3 Haulers Intercepted 2 | . 2 . Recyclers Shooed . | . . . Parts Field Recycled . | . . . Retrieved Matter . | . . . Parts Self-Destructed 11 | . . 11 Prevented . | . . . Parts Restored . | . . . Kills | -11 -10 -10 ------- Run | Yrd Mat Sub Combat Hostiles Destroyed 22 | . 18 4 Guns 14 | . 10 4 Cannons 8 | . 8 . Classes Destroyed 7 | . 6 1 Worker 2 | . 2 . Hauler 2 | . 2 . Operator 3 | . 3 . Watcher 3 | . 3 . Swarmer 6 | . 6 . Grunt 12 | . 12 . Subdweller 4 | . . 4 Best Kill Streak 3 | . 3 2 Combat Bots Only 3 | . 3 2 Max Kills in Single Turn 1 | . 1 1 Gunslinging . | . . . Exploded . | . . . Melee . | . . . Uniques/NPCs Destroyed . | . . . Combat | -11 -10 -10 -------- Run | Yrd Mat Sub Hostile Shots Fired 75 | . 56 19 Missed 21 | . 18 3 Hits 54 | . 38 16 Projectile 54 | . 38 16 Damage Taken 807 | . 459 348 Core 270 | . 136 134 Absorbed by Shields . | . . . Core Remaining (%) 100 | 100 . . Volleys Fired 81 | . 68 13 Largest 2 | . 2 2 Hottest 130 | . 130 130 Shots Fired 159 | . 133 26 Gun 128 | . 102 26 Cannon 31 | . 31 . Launcher . | . . . Special . | . . . Kinetic 20 | . 20 . Thermal 93 | . 67 26 Explosive . | . . . Electromagnetic 46 | . 46 . Robot Hit Streak 8 | . 8 8 Robot Miss Streak 7 | . 7 4 Penetration Max . | . . . Secondary Targets 1 | . . 1 Max Gunslinging Chain 1 | . . 1 Shots Hit Robots 103 | . 83 20 Core Hits 75 | . 50 25 Critical Kills . | . . . Critical Parts Destroyed . | . . . Critical Strikes 3 | . 3 . Burn 3 | . 3 . Melee Attacks 8 | . 1 7 Impact . | . . . Slashing 8 | . 1 7 Piercing . | . . . Sneak Attacks . | . . . Combat Hostiles . | . . . Follow-up Attacks . | . . . Damage Inflicted 1694 | . 1381 313 Guns 1136 | . 823 313 Cannons 484 | . 484 . Explosions 45 | . 45 . Melee . | . . . Ramming 29 | . 29 . Kinetic 121 | . 121 . Thermal 901 | . 588 313 Explosive . | . . . Electromagnetic 643 | . 643 . Impact . | . . . Slashing . | . . . Piercing . | . . . Highest Corruption . | . . . Average Corruption . | . . . Corruption Purged . | . . . Corruption Blocked . | . . . Overload Shots . | . . . Overflow Damage 29 | . 29 . Projectiles 29 | . 29 . Explosions . | . . . Melee . | . . . Knockbacks 1 | . 1 . Impact 1 | . 1 . Kinetic . | . . . Secondary . | . . . Self-Inflicted Damage . | . . . Shots . | . . . Rammed 3 | . 3 . Targets Rammed 4 | . 4 . Kicked . | . . . Crushed 1 | . 1 . Highest Temperature 360 | . 360 185 Average Temperature 86 | . 91 47 Received Heat Transfer 198 | . 162 36 Effects 2 | . 2 . Energy Bleed 2 | . 2 . Siege Activations . | . . . Martial Activations . | . . . Shielding Activations . | . . . Robots Disrupted . | . . . Combat Hostiles . | . . . Robots Corrupted . | . . . Combat Hostiles . | . . . Parts Fried 3 | . 3 . Impact Corruptions . | . . . Robots Melted . | . . . Combat Hostiles . | . . . Parts Melted 1 | . 1 . Heat Transferred 1840 | . 1455 385 Parts Sabotaged . | . . . Parts Stolen . | . . . Parts Stripped . | . . . Power Chain Reactions 1 | . 1 . Alert | -11 -10 -10 ------- Run | Yrd Mat Sub Maximum Alert Level . | . . . Low Security (%) 100 | 100 100 . Level 1 . | . . . Level 2 . | . . . Level 3 . | . . . Level 4 . | . . . Level 5 . | . . . High Security . | . . . Max Security . | . . . Peak Influence 137 | . 137 . Initial . | . . . Average 46 | . 48 . Influence Increases 528 | . 528 . Destroy 0b10 Robot/C 360 | . 360 . Destroy 0b10 Robot/NC 50 | . 50 . Destroy Leader 80 | . 80 . Successful Hack 5 | . 5 . Destroy Structure 3 | . 3 . Partial Spotted 15 | . 15 . Lose Combat Pursuer 15 | . 15 . Influence Decreases 528 | . 512 16 Entered New Map 8 | . . 8 Time Decay 520 | . 512 8 Squads Dispatched 4 | . 4 . Investigation 1 | . 1 . Extermination . | . . . Reinforcement 3 | . 3 . Assault . | . . . Garrison . | . . . Intercept . | . . . Searches Triggered . | . . . Construction Impeded . | . . . Haulers Reinforced . | . . . Active Scanning Responses . | . . . Cargo Convoy Interrupts . | . . . Stealth | -11 -10 -10 --------- Run | Yrd Mat Sub Distress Signals . | . . . Communications Jammed . | . . . Distress Signals . | . . . Times Spotted 34 | . 27 7 Peak Tracking Total 3 | . 3 2 Tactical Retreats 1 | . 1 . Traps | -11 -10 -10 ------- Run | Yrd Mat Sub Traps Triggered 3 | . 3 . Indirectly . | . . . Trap Hack Attempts . | . . . Triggered . | . . . Disarmed . | . . . Reprogrammed . | . . . Reused . | . . . Traps Extracted . | . . . Installed 1 | . . 1 Triggered . | . . . Machines | -11 -10 -10 ---------- Run | Yrd Mat Sub Machines Disabled . | . . . Max in Single Turn . | . . . Machines Repaired . | . . . Machines Dismantled . | . . . Machines Sabotaged . | . . . Overloaded Fab Kills . | . . . Hacking | -11 -10 -10 --------- Run | Yrd Mat Sub Machines Accessed 1 | . 1 . Terminals 1 | . 1 . Fabricators . | . . . Repair Stations . | . . . Recycling Units . | . . . Scanalyzers . | . . . Garrison Access . | . . . Total Hacks 4 | . 4 . Successful 1 | . 1 . Failed 3 | . 3 . Catastrophic . | . . . Database Lockouts . | . . . Manual 2 | . 2 . Terminals 4 | . 4 . Fabricators . | . . . Repair Stations . | . . . Recycling Units . | . . . Scanalyzers . | . . . Garrison Access . | . . . Terminal Hacks 1 | . 1 . Robot Schematic 1 | . 1 . Fabricator Hacks . | . . . Repair Station Hacks . | . . . Recycling Unit Hacks . | . . . Scanalyzer . | . . . Garrison Access Hacks . | . . . Unauthorized Hacks . | . . . Terminals . | . . . Fabricators . | . . . Repair Stations . | . . . Recycling Units . | . . . Scanalyzers . | . . . Garrison Access . | . . . Data Cores Recovered 1 | . 1 . Used 1 | . 1 . Hacking Detections 1 | . 1 . Full Trace Events 1 | . 1 . Feedback Events . | . . . Feedback Blocked . | . . . Robot Schematics Acquired 1 | . 1 . Robots Built . | . . . Authchips . | . . . Time . | . . . Total Robot Build Rating . | . . . Part Schematics Acquired . | . . . Parts Built . | . . . Authchips . | . . . Time . | . . . Total Part Build Rating . | . . . Part Studies Acquired . | . . . Parts Repaired . | . . . Time . | . . . Parts Recycled . | . . . Recycled Matter . | . . . Retrieved Matter . | . . . Retrieved Components . | . . . Parts Scanalyzed . | . . . Part Schematics Acquired . | . . . Parts Damaged . | . . . Bothacking | -11 -10 -10 ------------ Run | Yrd Mat Sub Used RIF Installer . | . . . Robots Hacked . | . . . Non-combat . | . . . Combat . | . . . Robot Hacks Applied . | . . . Relay Couplers Released . | . . . Fabnet Peak Effective % . | . . . Robots Rewired . | . . . Allies Hacked . | . . . Hacks Repelled . | . . . Allies | -11 -10 -10 -------- Run | Yrd Mat Sub Total Allies . | . . . Largest Group . | . . . Highest-Rated Group . | . . . Highest-Rated Ally . | . . . Total Orders . | . . . Ally Attacks . | . . . Total Damage . | . . . Kills . | . . . Allies Corrupted . | . . . Allies Melted . | . . . X0-1V1 Amusement Gains 12 | . 12 . Good Acts 5 | . . 5 Bad Acts 2 | . . 2 Intel | -11 -10 -10 ------- Run | Yrd Mat Sub Active Infowar (turns) 1033 | . 875 158 Structural 1033 | . 875 158 Robot Analysis Total . | . . . Derelict Logs Recovered 1 | . . 1 Drone Launches . | . . . Drone Recoveries . | . . . Exploration | -11 -10 -10 ------------- Run | Yrd Mat Sub Turns Passed 2841 | 88 1794 959 Spaces Moved 1479 | 51 891 537 Core 2 | 2 . . Treads 1477 | 49 891 537 Legs . | . . . Wheels . | . . . Hover . | . . . Flight . | . . . Fastest Speed 50 | 50 160 160 Average Speed 159 | 155 160 160 Slowest Speed 160 | 160 160 160 Overloaded Moves . | . . . Propulsion Burnouts . | . . . Robots Hopped . | . . . Potential Cave-ins . | . . . Cave-ins Triggered . | . . . Exploration Rate (%) 45 | 3 97 35 Regions Visited 2 Branch Regions 1 Pre-discovered Areas . | . . . Known Exits Taken . | . . . Unknown Exits Taken 2 | 1 1 . Scrap Searched 1 | . . 1 Spaces Dug 2 | . . 2 Terrain Destroyed 4 | . 2 2 Melee 2 | . . 2 Projectile . | . . . AOE 2 | . 2 . Terrain Rammed . | . . . Walls Destroyed . | . . . Machines Disabled . | . . . Actions | -11 -10 -10 --------- Run | Yrd Mat Sub Total 1773 | 57 1121 595 Wait 139 | . 115 24 Move 1477 | 50 890 537 Hop . | . . . Pick Up 22 | 1 19 2 Fast Attach 8 | 6 2 . Attach 2 | . 1 1 Detach 1 | . 1 . Swap 19 | . 11 8 Drop 11 | . 9 2 Fire 81 | . 68 13 Melee 8 | . 1 7 Ram . | . . . Kick . | . . . Crush 4 | . 4 . Escape Stasis . | . . . Rewire . | . . . Trap 1 | . . 1 Miscellaneous . | . . . Route ------- -11/Scrapyard -10/Materials (discovered 6 exits: [*Mat x3] / [*Min x2] / [*Sub]) -10/Subcaves (discovered 3 exits: *Mat x2 / [*Scr]) History --------- Turn | Location | Event 29 | -11/Scrapyard | Discovered new exit (range 15) 89 | -11/Scrapyard | Entered Materials 156 | -10/Materials | Discovered new exit (range 8) 318 | -10/Materials | Build established: Mutant 321 | -10/Materials | Discovered new exit (range 15) 628 | -10/Materials | Discovered new exit (range 12) 1004 | -10/Materials | Discovered new exit (range 13) 1025 | -10/Materials | Core integrity fell below 50% 1165 | -10/Materials | Discovered new exit (range 14) 1851 | -10/Materials | Discovered new exit (range 7) 1878 | -10/Materials | Prayed at D.C.S.S. Altar Unit 1883 | -10/Materials | Entered Subcaves 1884 | -10/Subcaves | Approached by a straggling Scientist 1915 | -10/Subcaves | Shifting Twisted Machinery released Piercing Trap 1970 | -10/Subcaves | Scientist uncovered a shortcut to Scraptown 1978 | -10/Subcaves | Shifting Twisted Machinery released Sub. Power Source 1999 | -10/Subcaves | Shifting Twisted Machinery released Battle Cannon 2041 | -10/Subcaves | X0-1V1 mutated your Utility slot to Propulsion slot 2224 | -10/Subcaves | Ambushed by Subdwellers from Twisted Machinery 2274 | -10/Subcaves | A swath of the cavern ceiling suddenly collapsed 2400 | -10/Subcaves | Ranged accuracy permanently improved by X0-1V1 (+9%; -90 max core) 2402 | -10/Subcaves | Identified exit to Materials 2668 | -10/Subcaves | Shifting Twisted Machinery released Sub. Monowheel 2671 | -10/Subcaves | Shifting Twisted Machinery released Sub. Optics 2691 | -10/Subcaves | Discovered exit to Materials (range 13) 2839 | -10/Subcaves | Core integrity fell below 20% 2842 | -10/Subcaves | Destroyed by 6X-II5(R) with Subdweller Beam Cannon Last Messages --------------- 02520_ X0-1V1: "Watch where you're going!" (+6 sight range) 02553_ Subatomizers dissect the Sub. Monowheel. 02588_ Subatomizers dissect the Sub. Machine Gun. 02592_ Acquired 38 matter. 02600_ Subatomizers dissect the Sub. Power Source. 02626_ Acquired 11 matter. 02627_ Acquired 10 matter. 02629_ Acquired 1 matter. 02634_ Acquired Multitool. Prototype Device suddenly appears amidst shimmering waves of color. 02642_ P8-T18(R): "WEHOME!" 02645_ P8-T18(R) destroyed. Sub. Monowheel falls loose from the Twisted Machinery. Sub. Optics falls loose from the Twisted Machinery. 02691_ EXIT=FOUND: MATERIALS 02719_ X0-1V1: "Let the electrons flow!" (+1400 energy capacity) 02824_ Searching scrap... 02824_ Found Sub. Machine Gun. 02824_ Found 32 Matter. 02842_ X0-1V1 chuckles heartily! Map ----- +----------------------------------------------------+ | ?????????????????????????????????? #### | | ?????????????????????????????? ?????## | | ?????????????????????????????? ????????# # # | | ????????????????????????????????????????????# ###? | | ????????????????????????????????????????????#????? | | ?????????????????????????????????????????????????? | | ?????????????????????????????????????????????????? | | ?????????????????????????????????????????????????? | | ?????????????????????????????????????????????????? | | ?????????????????????????????????????????????????? | | ?????????????????????????????????????????????????? | | ?????????????????????????????????????????????????? | | ?????????????????????????????????????????????????? | | ?????????????????????????????????????????????????? | | ?????????????????????????????????????????????????? | | ?????????????????????????????????????????????????? | | ?????????????????????????????????????????????????? | | ?????????????????????????????????????????????????? | | ?????????????????????????????????????????????????? | | ???????????????????????????????#########?????????? | | ????????????????#?????????????## # # ##???????## | | ????????????????# ????????????# #?????### | | ????????????????# ?????????## #?????# | | ???????????????##